Cogmind - Beta 16.1 @@@ ROGUE MODE // 2026.01.25 @ 19:42:14 Player: JuustuToug Result: Establishing 0b11! Performance ------------- Evolutions (9) 4500 Regions Visited (26) 5200 Robots Destroyed (281) 1405 Value Destroyed (10036) 10036 Prototype IDs (388) 7760 Alien Tech Used (0) 0 Bonus (33216) 33216 TOTAL SCORE: 62117 Bonus ------- High Alert Combat Kills 1157 Follower Combat Kills 571 Entered Garrisons 400 Aligned with FarCom 300 Acquired ECA 300 Met Warlord at Base 500 MAIN.C Attacked Warlord 500 Met Warlord at Research 2000 Invited to Help at Command 2000 Destroyed MAIN.C Guards 500 Met MAIN.C 5000 Destroyed MAIN.C Shell 5000 Destroyed MAIN.C 10000 Met Warlord at Command 2000 Win 3000 Friendly Fire -12 Cogmind --------- Core Integrity 1540/1600 Matter 300/300 Energy 218/220 System Corruption 0% Temperature Cool (4) Movement Flying (32) Location 0b11 Command Parts ------- > --- POWER (2) -------- Micro Fission Core Light Antimatter Reactor > --- PROPULSION (7) --- Impulse Thruster Array Impulse Thruster Array Impulse Thruster Array Cooled Q-thruster > --- UTILITY (12) ----- Advanced Power Amplifier Medium Storage Unit Machine Analyzer Enhanced Optical Array Improved Particle Charger ECM Suite Advanced Cloaking Device Centrium Light Armor Plating Graphene Brace > --- WEAPON (4) ------- Power Sword Phasing Sabre Force Lance > --- INVENTORY (10) --- Light Quantum Reactor Impulse Thruster Array Experimental Heat Sink Advanced Point Defense System Vortex Cannon (17) Vortex Cannon (5) Fusion Bomb Launcher Field Lobotomy Kit (3) Powered Hammer Peak State ------------ > --- POWER ------------ Micro Fission Core Light Quantum Reactor > --- PROPULSION ------- Impulse Thruster Array Impulse Thruster Array Impulse Thruster Array Cooled Q-thruster > --- UTILITY ---------- Medium Storage Unit Machine Analyzer Enhanced Optical Array Improved Cloaking Device Centrium Light Armor Plating Graphene Brace Advanced Point Defense System Hacking Suite Improved Hacking Suite Advanced Hacking Suite Advanced System Shield Advanced System Shield > --- WEAPON ----------- Guided Micro-nuke Launcher Field Lobotomy Kit Phasing Sabre > --- INVENTORY -------- Light Quantum Reactor Impulse Thruster Array Impulse Thruster Array Experimental Heat Sink ECM Suite Vortex Cannon Vortex Cannon Powered Hammer [Rating: 181] Favorites ----------- Power Nuclear Core Engine Improved Deuterium Engine Power Core Nuclear Core Reactor Light Quantum Reactor Propulsion Light Treads Treads Light Treads Leg Aluminum Leg Hover Unit Cooled Antigrav System Flight Unit Impulse Thruster Array Utility High-capacity Storage Unit Device Seismic Detector Storage High-capacity Storage Unit Processor Advanced Visual Processing Unit Hackware Hacking Suite Protection Centrium Light Armor Plating Weapon Heavy Assault Rifle Energy Gun Improved Medium Laser Energy Cannon Advanced Beam Cannon Ballistic Gun Heavy Assault Rifle Launcher Guided Micro-nuke Launcher Special Weapon Field Lobotomy Kit Impact Weapon Powered Hammer Slashing Weapon Ripper Piercing Weapon Makeshift Spear Build | -11 -10 -10 -9 -9 -9 -8 -8 -8 -7 -7 -7 -7 -7 -6 -6 -6 -5 -5 -5 -5 -4 -4 -3 -2 -1 -1 ------- Run | Yrd Mat Min Mat Min Exi Min Mat Gar Fac Gar Fac Low Low Fac Low Low Fac Upp Upp War Pro Fac Res Res Acc Com Slots Evolved 18 | . . . 2 . . . 2 . 2 . . . . 2 . . 2 . . . . 2 2 2 2 . Power 1 | . . . . . . . . . . . . . . . . . 1 . . . . . . . . . Propulsion 5 | . . . . . . . 2 . . . . . . . . . . . . . . 2 . 1 . . Utility 10 | . . . . . . . . . 2 . . . . 2 . . 1 . . . . . 2 1 2 . Weapon 2 | . . . 2 . . . . . . . . . . . . . . . . . . . . . . . Parts Attached 253 | 7 10 3 21 1 . 2 18 13 12 26 16 2 3 15 2 . 15 2 . 15 4 13 4 27 4 18 Power 32 | 1 2 . 3 . . . 1 2 3 1 1 . . 2 . . 5 1 . 4 . . . 5 . 1 Engine 17 | 1 2 . 2 . . . . 2 3 1 1 . . 2 . . 1 . . 2 . . . . . . Core 8 | . . . 1 . . . 1 . . . . . . . . . 4 1 . . . . . 1 . . Reactor 7 | . . . . . . . . . . . . . . . . . . . . 2 . . . 4 . 1 Propulsion 77 | 2 1 . 8 . . . 7 8 2 12 6 1 1 2 . . 6 . . 3 2 6 1 6 . 3 Treads 45 | 2 1 . 8 . . . 7 8 2 12 4 . 1 . . . . . . . . . . . . . Leg 5 | . . . . . . . . . . . 1 1 . 2 . . 1 . . . . . . . . . Wheel . | . . . . . . . . . . . . . . . . . . . . . . . . . . . Hover 6 | . . . . . . . . . . . 1 . . . . . . . . 3 2 . . . . . Flight 21 | . . . . . . . . . . . . . . . . . 5 . . . . 6 1 6 . 3 Utility 72 | 2 4 . 1 1 . 2 3 . 4 2 4 1 . 7 . . 3 1 . 4 1 6 3 11 4 8 Device 35 | 1 2 . 1 . . 1 . . 1 2 3 1 . 2 . . . . . 3 1 1 1 6 2 7 Storage 8 | 1 2 . . 1 . . 1 . 1 . . . . . . . . . . . . 1 . . . 1 Processor 10 | . . . . . . . 1 . 1 . 1 . . 1 . . 2 . . 1 . 1 . 2 . . Hackware 12 | . . . . . . . 1 . 1 . . . . 2 . . 1 . . . . 2 1 2 2 . Protection 7 | . . . . . . 1 . . . . . . . 2 . . . 1 . . . 1 1 1 . . Artifact . | . . . . . . . . . . . . . . . . . . . . . . . . . . . Weapon 72 | 2 3 3 9 . . . 7 3 3 11 5 . 2 4 2 . 1 . . 4 1 1 . 5 . 6 Energy Gun 22 | 1 . 2 3 . . . 4 1 3 4 1 . 1 1 . . . . . 1 . . . . . . Energy Cannon 8 | . 1 . 1 . . . . . . . 1 . . 2 . . . . . 2 . . . 1 . . Ballistic Gun 21 | 1 . 1 4 . . . 3 2 . 5 2 . 1 . . . . . . . . . . . . 2 Ballistic Cannon . | . . . . . . . . . . . . . . . . . . . . . . . . . . . Launcher 6 | . 1 . . . . . . . . 1 . . . . . . . . . 1 . . . 2 . 1 Special Weapon 3 | . . . . . . . . . . 1 . . . . 1 . . . . . . . . 1 . . Impact Weapon 3 | . . . . . . . . . . . 1 . . . . . 1 . . . . . . . . 1 Slashing Weapon 7 | . 1 . 1 . . . . . . . . . . 1 1 . . . . . . 1 . 1 . 1 Piercing Weapon 2 | . . . . . . . . . . . . . . . . . . . . . 1 . . . . 1 Special Melee Weapon . | . . . . . . . . . . . . . . . . . . . . . . . . . . . Unidentified Prototypes 20 | . . . 1 . . . . . . . 1 . . . . . . . . 9 . 1 1 6 1 . Parts Lost 72 | . 3 1 . . . . 1 2 11 10 10 2 4 13 . . 5 . 1 . 4 2 . 2 . 1 Power 7 | . 2 . . . . . . . . 1 . . . 2 . . . . . . 1 . . 1 . . Propulsion 28 | . 1 . . . . . . 1 5 4 4 2 2 4 . . 3 . . . 2 . . . . . Utility 10 | . . . . . . . . . 1 . 1 . . 3 . . 2 . 1 . . 1 . 1 . . Weapon 27 | . . 1 . . . . 1 1 5 5 5 . 2 4 . . . . . . 1 1 . . . 1 Highest Loss Streak 13 | . 2 1 . . . . 1 1 5 8 3 2 2 13 . . 4 . 1 . 4 2 . 2 . 1 To Critical Strikes . | . . . . . . . . . . . . . . . . . . . . . . . . . . . Average Backups 15 | 1 10 17 19 20 19 20 19 19 19 18 18 19 19 15 4 5 4 5 5 4 5 6 9 8 8 8 Power 1 | . 1 2 1 1 1 1 1 1 1 1 . 1 1 . . 1 1 2 2 1 2 1 1 1 1 1 Propulsion 2 | . . 1 4 6 6 6 4 3 3 . . . . . . . . . . . . . 3 1 2 1 Utility 5 | . 2 5 5 5 4 4 4 6 7 9 9 11 11 7 . 1 1 1 1 . . 1 1 1 2 1 Weapon 5 | . 5 8 8 8 8 8 7 7 5 5 5 5 4 4 1 1 1 1 1 1 2 2 2 2 2 3 Tool/Special . | . . . . . . . . . . . . . . . . . . . . . . . . . . . Unused Backups 43 | . . . 12 . . . 3 2 2 4 3 . 1 6 1 . . . . 1 . . 2 5 . 1 Power 5 | . . . 2 . . . . . 1 1 . . . . . . . . . . . . . 1 . . Propulsion 4 | . . . 2 . . . . . . . . . . . . . . . . . . . . 2 . . Utility 20 | . . . 4 . . . 1 1 1 2 3 . . 5 . . . . . . . . 2 1 . . Weapon 14 | . . . 4 . . . 2 1 . 1 . . 1 1 1 . . . . 1 . . . 1 . 1 Tool/Special . | . . . . . . . . . . . . . . . . . . . . . . . . . . . Average Slot Usage (%) 92 | . 98 99 99 100 100 100 99 99 98 97 99 96 89 80 40 40 55 58 55 67 82 80 79 84 82 81 Engine 4 | . 13 14 6 . . . . 7 7 6 7 7 7 4 . . . . . 5 4 . . . . . Core 3 | . . . 4 11 11 11 9 1 . . . . . . . . 4 5 5 4 5 5 4 3 4 3 Treads 18 | . 27 28 21 22 22 22 35 36 29 29 23 23 15 9 . . . . . . . . . . . . Flight 3 | . . . . . . . . . . . . . . . . . 10 11 11 10 3 15 23 24 16 16 Device 9 | . 13 14 11 11 11 11 8 9 5 7 7 7 7 11 . . . . . 1 1 2 8 8 11 13 Storage 7 | . 14 14 11 11 11 11 9 9 7 7 7 7 7 4 . . . . . . . 3 4 4 4 4 Processor 5 | . . . . . . . . . 6 7 7 7 7 7 13 13 15 17 17 21 23 12 4 10 8 8 Hackware 5 | . . . . . . . . . 6 7 7 7 7 8 20 20 16 17 14 11 11 14 14 17 18 16 Energy Gun 9 | . 13 27 12 11 11 11 14 18 18 11 7 15 9 4 . . . . . . . . . . . . Energy Cannon 3 | . 10 . 9 11 11 11 3 . . . 3 . . 5 . . . . . . . . . . . . Ballistic Gun 9 | . 2 . 21 21 22 22 17 12 5 9 10 7 12 5 . . . . . . . . . . . . Slashing Weapon 2 | . . . . . . . . 5 5 6 6 7 6 4 5 6 4 . . . . . . 1 4 4 Peak Build Rating 181 | 7 11 10 22 22 21 23 26 28 38 44 46 44 41 54 24 21 46 39 36 94 94 89 88 158 172 181 Average Rating 45 | 5 8 9 18 20 20 21 24 26 34 40 42 39 38 45 20 21 34 36 34 54 83 79 82 122 167 156 On Entrance 43 | . 7 9 10 21 20 21 22 24 27 26 43 42 39 36 21 21 21 36 36 33 90 77 77 85 158 170 Avg Prop Armor Cover (%) 7 | . . . . . . . . . . . 4 5 4 5 . . 28 . . 7 2 14 . . . . Naked Turns . | . . . . . . . . . . . . . . . . . . . . . . . . . . . Heaviest Build 83 | 13 50 48 62 62 61 62 62 62 67 73 73 67 67 83 3 3 15 8 8 35 37 32 38 53 54 74 Greatest Support 88 | 40 40 40 40 40 40 40 80 80 80 88 88 80 60 40 3 3 16 8 8 47 49 49 43 54 54 55 Greatest Overweight (x) 4 | . 2 1 1 1 1 1 . . 2 1 1 1 1 4 . . 3 . . 3 1 1 . 1 . 1 Average Overweight (x) . | . . 1 1 1 1 1 . . . . . . 1 . . . . . . . . . . . . . Largest Inventory Capacity 20 | 8 20 20 20 20 20 20 20 20 20 20 20 20 20 20 5 5 5 5 5 5 5 10 10 10 10 10 Average Capacity 16 | 7 17 20 20 20 20 20 20 20 20 20 20 20 20 16 5 5 5 5 5 5 5 9 10 10 10 10 Most Carried 20 | 3 17 18 20 20 20 20 20 20 20 20 20 20 20 20 5 5 5 5 5 5 5 10 10 10 10 10 Average Carried 15 | 1 10 17 19 20 19 20 19 19 18 18 18 19 19 15 4 5 4 5 5 4 5 6 9 9 10 9 Final Capacity 20 | 8 20 20 20 20 20 20 20 20 20 20 20 20 20 5 5 5 5 5 5 5 5 10 10 10 10 10 Final Carried 20 | 3 17 18 20 20 20 20 20 20 17 20 19 20 20 3 5 5 5 5 5 5 5 10 10 10 10 10 Class Distribution -------------------- 39% | Scavenger-Skirmisher 18% | Scavenger-Gunner 8% | Mutant 5% | Hacker-Ninja 5% | Wizard-Ninja 5% | Scavenger-Mutant 4% | Hacker-Sprinter 3% | Gunner 3% | Hacker-Mutant Dominant Class ---------------- Mutant | -10/Materials Scavenger-Mutant | -10/Mines Scavenger-Gunner | -9/Materials Scavenger-Gunner | -9/Mines Scavenger-Gunner | -9/Exiles Scavenger-Skirmisher | -8/Mines Scavenger-Skirmisher | -8/Materials Scavenger-Skirmisher | -8/Garrison Scavenger-Skirmisher | -7/Factory Scavenger-Skirmisher | -7/Garrison Scavenger-Skirmisher | -7/Factory Scavenger-Skirmisher | -7/Lower Caves Scavenger-Skirmisher | -7/Lower Caves Scavenger-Skirmisher | -6/Factory Hacker-Mutant | -6/Lower Caves Hacker-Mutant | -6/Lower Caves Hacker-Sprinter | -5/Factory Hacker-Sprinter | -5/Upper Caves Hacker-Sprinter | -5/Upper Caves Commander-Mutant | -5/Warlord Scavenger-Gladiator | -4/Proximity Caves Hacker-Mutant | -4/Factory Hacker-Sprinter | -3/Research Hacker-Ninja | -2/Research Wizard-Ninja | -1/Access Wizard-Ninja | -1/Command Resources | -11 -10 -10 -9 -9 -9 -8 -8 -8 -7 -7 -7 -7 -7 -6 -6 -6 -5 -5 -5 -5 -4 -4 -3 -2 -1 -1 ----------- Run | Yrd Mat Min Mat Min Exi Min Mat Gar Fac Gar Fac Low Low Fac Low Low Fac Upp Upp War Pro Fac Res Res Acc Com Matter Collected 6403 | 286 359 61 641 127 . 30 494 422 177 695 378 99 268 178 47 . 152 20 . 210 107 150 8 577 90 827 Remotely . | . . . . . . . . . . . . . . . . . . . . . . . . . . . Salvage Created 11413 | 178 771 107 1825 197 . . 1053 1073 593 1068 782 58 319 239 183 270 184 128 . . 195 54 8 362 164 1602 Parts 556 | 7 48 7 135 16 . . 63 53 14 51 38 4 21 7 7 . 9 . . . 7 4 . 10 17 38 Haulers Intercepted 15 | . 2 . 6 . . . 4 . . . . . . . . . . . . . . . . 3 . . Recyclers Shooed 10 | . 2 1 4 1 . . 1 . 1 . . . . . . . . . . . . . . . . . Parts Field Recycled . | . . . . . . . . . . . . . . . . . . . . . . . . . . . Retrieved Matter . | . . . . . . . . . . . . . . . . . . . . . . . . . . . Parts Self-Destructed 30 | . . . . . . . . . . . . 2 18 . 2 . . . . . 8 . . . . . Prevented . | . . . . . . . . . . . . . . . . . . . . . . . . . . . Parts Restored . | . . . . . . . . . . . . . . . . . . . . . . . . . . . Kills | -11 -10 -10 -9 -9 -9 -8 -8 -8 -7 -7 -7 -7 -7 -6 -6 -6 -5 -5 -5 -5 -4 -4 -3 -2 -1 -1 ------- Run | Yrd Mat Min Mat Min Exi Min Mat Gar Fac Gar Fac Low Low Fac Low Low Fac Upp Upp War Pro Fac Res Res Acc Com Combat Hostiles Destroyed 192 | . 15 2 29 9 . . 22 26 7 24 16 1 13 4 . . 1 . . . 4 . . 2 6 11 Melee 12 | . . . . . . . 1 . 1 5 1 . . 1 . . 1 . . . 2 . . . . . Guns 112 | . 6 2 15 5 . . 14 25 5 16 9 1 13 1 . . . . . . . . . . . . Cannons 22 | . 6 . 6 1 . . 3 . . . 3 . . 2 . . . . . . . . . . . 1 AOE 42 | . 3 . 8 3 . . 4 . . 3 2 . . . . . . . . . 2 . . 2 6 9 Classes Destroyed 18 | 3 6 . 1 . . . 1 1 2 1 . . . . 2 . . . . . 1 . . . . . Worker 20 | 2 3 . 8 . . . 2 . . . . . . . . . . . . . . . 1 1 . 3 Builder 16 | . 3 1 5 1 . . 4 . . . 1 . . . . . . . . . . . . . 1 . Tunneler 5 | 2 . . 2 . . . . . . . . . . . . . 1 . . . . . . . . . Hauler 15 | . 2 . 6 . . . 4 . . . . . . . . . . . . . . . . 3 . . Recycler 12 | 1 . . 4 . . . 1 . 2 . . . . . . . 1 . . . . . . . . 3 Minesweeper 1 | . . . . . . . . . . . . . . . 1 . . . . . . . . . . . Mechanic 2 | . . . . . . . . . 1 . . . . . . . . . . . . . . . . 1 Operator 8 | . 1 . 2 . . . . . . . . . . . . . 1 . . . . 2 . . 1 1 Drone 1 | . . . . . . . . . . . . . . . . . . . . . 1 . . . . . Watcher 9 | . 2 . 4 . . . 1 . . . . . . . . . . . . . . . . . . 2 Swarmer 71 | . 3 . 15 7 . . 10 8 . 5 . . 10 . . . 1 1 . . 1 . . . 6 4 Grunt 63 | . 12 2 4 2 . . 6 8 3 7 10 1 2 2 . . . . . . 1 . . 2 . 1 Brawler 2 | . . . . . . . . . . 2 . . . . . . . . . . . . . . . . Duelist 4 | . . . . . . . . . 2 . . . . 1 . . . . . . . . . . . 1 Sentry 36 | . . . 10 . . . 5 7 2 8 3 . 1 . . . . . . . . . . . . . Hunter 5 | . . . . . . . 1 1 . 2 . . . . . . . . . . . . . . . 1 Programmer 10 | . . . . . . . . 2 . . 3 . . 1 . . . . . . 1 . . . . 3 Decomposer 4 | . . . . . . . . . . . . 1 . . 1 . . 2 . . . . . . . . Packrat 4 | . . . . . . . . . . . . . . . . 3 . . . . 1 . . . . . Samaritan 3 | . . . . . . . . . . . . . . . 3 . . . . . . . . . . . Best Kill Streak 12 | 5 3 1 12 4 . . 8 7 4 5 4 1 4 3 1 . 2 . . . 2 1 1 2 6 9 Combat Bots Only 8 | . 3 1 8 4 . . 4 7 3 5 4 1 4 3 . . 1 . . . 2 . . 2 6 6 Max Kills in Single Turn 4 | 1 2 1 4 3 . . 4 1 2 2 1 1 1 1 1 1 1 1 . . 1 1 1 1 4 3 Gunslinging 1 | . . . 1 . . . 1 . . 1 . . . . . . . . . . . . . . . . Exploded 4 | . 2 . 4 3 . . 3 . . 1 1 . . . . . . . . . 1 . . 1 4 2 Melee 1 | . . . . . . . 1 . 1 1 1 . . 1 . . 1 . . . 1 . . . . . Uniques/NPCs Destroyed 1 | . . . . . . . . . . . . . . . . . . . . . . . . . . 1 MAIN.C (-1/Command) Combat | -11 -10 -10 -9 -9 -9 -8 -8 -8 -7 -7 -7 -7 -7 -6 -6 -6 -5 -5 -5 -5 -4 -4 -3 -2 -1 -1 -------- Run | Yrd Mat Min Mat Min Exi Min Mat Gar Fac Gar Fac Low Low Fac Low Low Fac Upp Upp War Pro Fac Res Res Acc Com Hostile Shots Fired 1535 | . 90 14 91 19 . . 78 100 142 300 159 4 97 300 . . 6 2 6 . 46 12 14 . 6 49 Missed 500 | . 23 2 30 4 . . 22 31 44 99 56 . 30 98 . . 1 2 4 . 19 5 3 . 5 22 Hits 1035 | . 67 12 61 15 . . 56 69 98 201 103 4 67 202 . . 5 . 2 . 27 7 11 . 1 27 Melee 14 | . . . . . . . . . 9 1 . . . 3 . . . . . . 1 . . . . . Projectile 1021 | . 67 12 61 15 . . 56 69 89 200 103 4 67 199 . . 5 . 2 . 26 7 11 . 1 27 AOE 1 | . . . . . . . 1 . . . . . . . . . . . . . . . . . . . Critical Strikes 25 | . 2 1 1 . . . 2 5 4 1 3 . . 3 . . 1 . . . 1 . . . . 1 Actively Blocked 1 | . . . . . . . . . . . . . . . . . . . . . . . . . . 1 Part Disruptions 3 | . . . . . . . . . . . . . . . . . . . . . . . . . . 3 Damage Taken 13871 | . 1209 141 723 154 . . 878 1032 1295 1945 1268 64 774 2149 . . 175 . 34 . 537 170 273 163 21 866 Core 1920 | . 162 12 112 29 . . 62 89 216 144 90 . 121 539 . . 34 . . . 174 . 76 . . 60 Absorbed by Shields 44 | . . . . . . . . . . . . . . . . . . . . . . . . . . 44 Redirected to Shielding 17 | . . . . . . . . . . . . . . . . . . . . . . . 17 . . . Regen/Repaired (Parts) 571 | . 379 . 185 . . . . . . . . . . . . . . . . 7 . . . . . . Core Remaining (%) 71 | 100 . 30 . . . 64 . 72 . . . . 18 . . 36 . . . . 79 100 94 100 . 96 Volleys Fired 569 | 16 86 12 87 10 . . 49 99 24 63 36 3 21 11 . . . . . 1 3 . . 4 2 42 Largest 4 | 2 2 2 4 4 . . 4 4 4 3 3 3 4 4 . . . . . 1 1 . . 1 1 2 Hottest 270 | 60 100 80 170 170 . . 171 171 270 241 240 188 216 263 . . . . . 50 160 . . 55 55 100 Shots Fired 1496 | 32 168 26 326 37 . . 177 228 87 152 98 11 63 30 . . . . . 1 3 . . 4 2 51 Gun 1218 | 32 119 26 249 27 . . 160 228 87 134 69 11 63 12 . . . . . . . . . . . 1 Cannon 216 | . 45 . 73 9 . . 15 . . . 26 . . 18 . . . . . 1 . . . . . 29 Launcher 50 | . 4 . 4 1 . . 2 . . 8 3 . . . . . . . . . 3 . . 4 2 19 Special 12 | . . . . . . . . . . 10 . . . . . . . . . . . . . . . 2 Kinetic 594 | 16 38 . 159 18 . . 92 76 15 67 54 4 48 6 . . . . . . . . . . . 1 Thermal 810 | 16 126 26 163 18 . . 83 152 72 67 41 7 15 24 . . . . . . . . . . . . Explosive 50 | . 4 . 4 1 . . 2 . . 8 3 . . . . . . . . . 3 . . 4 2 19 Electromagnetic . | . . . . . . . . . . . . . . . . . . . . . . . . . . . Entropic 30 | . . . . . . . . . . . . . . . . . . . . 1 . . . . . 29 Robot Hit Streak 35 | 8 26 4 13 14 . . 12 21 16 18 15 11 7 11 . . . . . . 3 . . 7 . 35 Robot Miss Streak 18 | 1 4 2 9 4 . . 6 3 2 7 2 18 17 3 . . . . . . 5 . . . . . Penetration Max . | . . . . . . . . . . . . . . . . . . . . . . . . . . . Secondary Targets 16 | . . . 2 . . . 1 4 1 3 . . 5 . . . . . . . . . . . . . Max Gunslinging Chain 2 | . . . 1 . . . 1 1 1 2 . . 1 . . . . . . . . . . . . . Shots Hit Robots 1013 | 23 105 15 154 13 . . 96 122 69 118 75 6 43 24 7 3 8 4 . . 4 3 4 9 5 103 Core Hits 507 | 8 47 6 80 12 . . 48 45 22 61 39 4 46 8 3 1 3 1 . . 5 2 1 6 6 53 Critical Kills 4 | . . . 1 . . . . . . . . . . . . . . . . . . . . 3 . . Critical Parts Destroyed 6 | . 1 . 1 1 . . . . . . . . . . . . . . . . . . . 1 . 2 Critical Strikes 35 | . 1 . 5 1 . . 6 6 2 6 1 . . 1 . . . . . . . . . 4 . 2 Burn 19 | . . . 3 . . . 6 6 2 1 . . . 1 . . . . . . . . . . . . Destroy 4 | . 1 . 2 1 . . . . . . . . . . . . . . . . . . . . . . Smash 6 | . . . . . . . . . . . . . . . . . . . . . . . . 4 . 2 Sever 6 | . . . . . . . . . . 5 1 . . . . . . . . . . . . . . . Melee Attacks 333 | . 4 . 1 . . . . 21 4 50 20 6 2 4 8 3 14 7 . . 3 22 12 17 44 91 Impact 72 | . . . . . . . . . . . . . . . . . 2 7 . . . 8 12 15 9 19 Slashing 243 | . 4 . 1 . . . . 21 4 50 20 6 2 4 8 3 12 . . . . . . 2 35 71 Piercing 18 | . . . . . . . . . . . . . . . . . . . . . 3 14 . . . 1 Sneak Attacks 30 | . . . . . . . . . . 1 1 1 . . 6 3 3 3 . . . . 3 3 1 5 Combat Hostiles 1 | . . . . . . . . . . 1 . . . . . . . . . . . . . . . . Follow-up Attacks 6 | . . . . . . . . . . . . . . . . . . . . . . 1 . . 1 4 Damage Inflicted 31273 | 235 1472 211 2974 517 . 4 1999 2114 1335 2949 1985 191 740 669 531 237 475 418 . . 520 123 381 1002 898 9293 Guns 11366 | 235 740 178 1700 178 . . 1486 2114 1237 1654 787 134 740 183 . . . . . . . . . . . . Cannons 3684 | . 525 . 740 62 . . 184 . . . 569 . . 382 . . . . . . . . . . . 1222 Explosions 6695 | . 203 . 519 207 . . 312 . . 645 420 . . . . . . . . . 439 . . 592 605 2753 Melee 9352 | . . . . . . . . . 75 650 209 57 . 104 531 237 475 418 . . 71 123 381 410 293 5318 Ramming 176 | . 4 33 15 70 . 4 17 . 23 . . . . . . . . . . . 10 . . . . . Kinetic 4427 | 81 208 . 753 112 . . 673 629 195 636 503 69 483 85 . . . . . . . . . . . . Thermal 9401 | 154 1057 178 1687 128 . . 997 1485 1042 1018 853 65 257 480 . . . . . . . . . . . . Explosive 6683 | . 191 . 519 207 . . 312 . . 645 420 . . . . . . . . . 439 . . 592 605 2753 Electromagnetic 12 | . 12 . . . . . . . . . . . . . . . . . . . . . . . . . Impact 2200 | . . . . . . . . . . . . . . . . . 105 418 . . . 90 381 410 36 760 Slashing 7048 | . . . . . . . . . 75 650 209 57 . 104 531 237 370 . . . . . . . 257 4558 Piercing 104 | . . . . . . . . . . . . . . . . . . . . . 71 33 . . . . Entropic 1222 | . . . . . . . . . . . . . . . . . . . . . . . . . . 1222 Highest Corruption 7 | . 7 7 . . . . . 1 . . 2 2 2 4 4 4 . . . . . . 2 1 . 6 Average Corruption 3 | . 4 7 . . . . . 1 . . 1 2 2 2 4 4 . . . . . . 1 1 . 4 Corruption Purged 7 | . . . . . . . . . . . . . . . . . . . . . . . . 1 . 6 Corruption Blocked . | . . . . . . . . . . . . . . . . . . . . . . . . . . . Effects 136 | . 28 38 . . . . . 4 . . 7 14 14 6 . 1 . . . . . . 2 2 . 20 Message Errors 42 | . 10 9 . . . . . 1 . . 4 2 5 1 . . . . . . . . 2 1 . 7 Matter Fused 28 | . 6 5 . . . . . . . . 1 3 2 3 . 1 . . . . . . . . . 7 Heat Flow Errors 17 | . 3 8 . . . . . 1 . . . 2 1 1 . . . . . . . . . 1 . . Energy Discharges 16 | . 3 6 . . . . . 2 . . . 2 2 . . . . . . . . . . . . 1 Parts Rejected 2 | . . . . . . . . . . . . 1 . . . . . . . . . . . . . 1 Parts Fused 2 | . . 1 . . . . . . . . . . 1 . . . . . . . . . . . . . Data Loss (minor) 12 | . 1 5 . . . . . . . . . 1 2 1 . . . . . . . . . . . 2 Data Loss (major) 7 | . 2 1 . . . . . . . . 1 1 . . . . . . . . . . . . . 2 Misfires 7 | . 1 3 . . . . . . . . 1 2 . . . . . . . . . . . . . . Alerts 3 | . 2 . . . . . . . . . . . 1 . . . . . . . . . . . . . Overload Shots . | . . . . . . . . . . . . . . . . . . . . . . . . . . . Overflow Damage 1821 | . 4 . 9 1 . . . . . 5 53 . . . 158 111 80 236 . . 26 55 . 110 239 734 Projectiles 9 | . . . 1 1 . . . . . . 7 . . . . . . . . . . . . . . . Explosions 266 | . 4 . 8 . . . . . . 5 9 . . . . . . . . . 4 . . 62 80 94 Melee 1546 | . . . . . . . . . . . 37 . . . 158 111 80 236 . . 22 55 . 48 159 640 Knockbacks 5 | . . . . 1 . . 1 . . . . . . . . . 1 . . . . . . . 1 1 Impact 5 | . . . . 1 . . 1 . . . . . . . . . 1 . . . . . . . 1 1 Kinetic . | . . . . . . . . . . . . . . . . . . . . . . . . . . . Secondary . | . . . . . . . . . . . . . . . . . . . . . . . . . . . Self-Inflicted Damage 253 | . 74 . 40 25 . . . . . 18 40 . . . . . . . . . 5 . . . . 51 Shots 11 | . 3 . 2 1 . . . . . 1 2 . . . . . . . . . . . . . . 2 Rammed 24 | . 1 5 1 10 . 1 . . 5 . . . . . . . . . . . 1 . . . . . Targets Rammed 25 | . 1 5 1 10 . 1 1 . 5 . . . . . . . . . . . 1 . . . . . Kicked . | . . . . . . . . . . . . . . . . . . . . . . . . . . . Crushed 1 | . . . . . . . 1 . . . . . . . . . . . . . . . . . . . Highest Temperature 461 | 80 261 277 461 105 . . 330 179 323 214 105 267 288 320 . . 5 . . . 232 439 2 75 . 199 Average Temperature 75 | 44 77 114 73 49 . . 64 41 120 59 27 112 80 117 . . 5 . . . 97 111 2 25 . 56 Received Heat Transfer 3840 | . 486 96 147 27 . . 234 387 450 546 342 36 81 735 . . 63 . . . 87 36 27 24 . 36 Effects 2 | . . . 2 . . . . . . . . . . . . . . . . . . . . . . . Shutdowns 1 | . . . 1 . . . . . . . . . . . . . . . . . . . . . . . Damage (major) 1 | . . . 1 . . . . . . . . . . . . . . . . . . . . . . . Siege Activations . | . . . . . . . . . . . . . . . . . . . . . . . . . . . Martial Activations . | . . . . . . . . . . . . . . . . . . . . . . . . . . . Shielding Activations . | . . . . . . . . . . . . . . . . . . . . . . . . . . . Robots Disrupted . | . . . . . . . . . . . . . . . . . . . . . . . . . . . Combat Hostiles . | . . . . . . . . . . . . . . . . . . . . . . . . . . . Robots Corrupted 6 | . . . . . . . . . . . . . . . . . 1 . . . 1 1 . 1 . 2 Combat Hostiles 1 | . . . . . . . . . . . . . . . . . . . . . . . . . . 1 Parts Fried 8 | . . . . . . . . . . . . . . . . . 2 3 . . . . . 1 . 2 Impact Corruptions 18 | . . . . . . . . . . . . . . . . . 2 7 . . 1 3 . 1 . 4 Robots Melted 3 | . . . . . . . . 1 1 . 1 . . . . . . . . . . . . . . . Combat Hostiles 3 | . . . . . . . . 1 1 . 1 . . . . . . . . . . . . . . . Parts Melted 44 | . 6 . 9 1 . . 4 6 5 6 5 . . 2 . . . . . . . . . . . . Heat Transferred 20254 | 350 2360 400 3589 259 . . 2516 3459 2220 1893 1560 150 600 898 . . . . . . . . . . . . Parts Sabotaged 2 | . . . . . . . . . . . . . . . . . . . . . 2 . . . . . Parts Stolen . | . . . . . . . . . . . . . . . . . . . . . . . . . . . Parts Stripped . | . . . . . . . . . . . . . . . . . . . . . . . . . . . Power Chain Reactions 1 | . 1 . . . . . . . . . . . . . . . . . . . . . . . . . Alert | -11 -10 -10 -9 -9 -9 -8 -8 -8 -7 -7 -7 -7 -7 -6 -6 -6 -5 -5 -5 -5 -4 -4 -3 -2 -1 -1 ------- Run | Yrd Mat Min Mat Min Exi Min Mat Gar Fac Gar Fac Low Low Fac Low Low Fac Upp Upp War Pro Fac Res Res Acc Com Maximum Alert Level 4 | . . . 2 1 . . 1 4 2 4 2 . . . . . . . . . . 1 . . 1 3 Low Security (%) 47 | 100 100 100 20 70 . 100 58 . . . . . . 100 . . 100 . . . . 38 100 100 93 11 Level 1 13 | . . . 38 29 . . 41 16 . 11 . . . . . . . . . . . 61 . . 6 . Level 2 24 | . . . 40 . . . . 23 100 32 100 . . . . . . . . . . . . . . 21 Level 3 12 | . . . . . . . . 44 . 39 . . . . . . . . . . . . . . . 66 Level 4 2 | . . . . . . . . 14 . 16 . . . . . . . . . . . . . . . . Level 5 . | . . . . . . . . . . . . . . . . . . . . . . . . . . . High Security . | . . . . . . . . . . . . . . . . . . . . . . . . . . . Max Security . | . . . . . . . . . . . . . . . . . . . . . . . . . . . Peak Influence 1303 | 10 111 42 611 357 . . 357 1262 662 1303 683 . . 51 . . 126 . . . . 236 102 89 208 724 Initial 683 | . . 42 . 237 . . . 228 662 308 683 . . 51 . . . . . . . 213 102 12 . 112 Average 297 | 1 30 3 340 114 . . 152 723 554 782 623 . . 11 . . 49 . . . . 201 52 14 110 454 Influence Increases 8962 | 25 589 55 1205 235 . . 703 1074 190 1195 700 20 305 191 5 . 238 6 . 73 165 294 50 186 341 1117 Destroy 0b10 Robot/C 4200 | . 300 40 660 180 . . 440 540 140 560 340 20 260 80 . . 120 . . 40 60 . . 40 120 260 Destroy 0b10 Robot/NC 480 | 25 55 5 160 5 . . 60 . 15 . 10 . . . 5 . 15 5 . . 5 10 5 20 10 70 Destroy Leader 750 | . 78 10 172 30 . . 120 30 30 40 100 . 30 20 . . 20 . . . 10 . . 6 10 44 Allied During Kill 129 | . . . 36 . . . . 1 . 18 21 . . . . . 34 1 . 18 . . . . . . Successful Hack 355 | . 48 . 34 . . . 7 23 4 14 42 . . 40 . . 22 . . . . 34 18 . 27 42 Select Force Hacks 20 | . . . . . . . . . . . . . . . . . . . . . . 20 . . . . Disable Machine 345 | . 45 . 90 15 . . 15 15 . 15 45 . . . . . 15 . . . . 30 . 15 . 45 Anti-Garrison Action 650 | . . . . . . . . 300 . 300 . . . . . . . . . . . . . . . 50 Destroy Structure 1163 | . 33 . 23 5 . . 16 60 1 98 37 . . 6 . . 12 . . . . 20 12 75 159 606 Advance Influence 150 | . . . . . . . . . . . . . . . . . . . . . . 150 . . . . Partial Spotted 45 | . . . . . . . . . . . . . . . . . . . . . . 30 15 . . . Lose Combat Pursuer 675 | . 30 . 30 . . . 45 105 . 150 105 . 15 45 . . . . . 15 90 . . 30 15 . Influence Decreases 8053 | 25 481 163 595 845 . . 352 163 1012 332 1329 663 254 252 26 . 218 26 . 24 114 197 225 208 164 385 Entered New Map 2476 | . . 66 . 373 . . . 123 600 132 620 251 7 31 9 . . 8 . . 49 37 95 10 . 65 Time Decay 4717 | 25 451 97 535 472 . . 342 . 302 . 589 392 207 151 17 . 148 18 . 24 45 140 130 198 164 270 Lost Part 600 | . 30 . . . . . 10 20 110 100 100 20 40 70 . . 50 . . . 20 20 . . . 10 Lost Ally 260 | . . . 60 . . . . 20 . 100 20 . . . . . 20 . . . . . . . . 40 Squads Dispatched 38 | . 2 . 3 . . . 2 . 3 . 10 . . 2 . . . . . . 1 3 3 2 3 4 Investigation 11 | . . . 1 . . . . . 1 . 5 . . . . . . . . . . 2 . 1 . 1 Extermination 12 | . . . . . . . . . . . 3 . . 1 . . . . . . . 1 2 . 2 3 Reinforcement 10 | . 2 . . . . . 2 . 1 . 1 . . 1 . . . . . . . . 1 1 1 . Assault 5 | . . . 2 . . . . . 1 . 1 . . . . . . . . . 1 . . . . . Garrison . | . . . . . . . . . . . . . . . . . . . . . . . . . . . Intercept . | . . . . . . . . . . . . . . . . . . . . . . . . . . . Searches Triggered . | . . . . . . . . . . . . . . . . . . . . . . . . . . . Construction Impeded 2 | . . . . . . . 1 . . . 1 . . . . . . . . . . . . . . . Haulers Reinforced . | . . . . . . . . . . . . . . . . . . . . . . . . . . . Active Scanning Responses . | . . . . . . . . . . . . . . . . . . . . . . . . . . . Cargo Convoy Interrupts . | . . . . . . . . . . . . . . . . . . . . . . . . . . . Stealth | -11 -10 -10 -9 -9 -9 -8 -8 -8 -7 -7 -7 -7 -7 -6 -6 -6 -5 -5 -5 -5 -4 -4 -3 -2 -1 -1 --------- Run | Yrd Mat Min Mat Min Exi Min Mat Gar Fac Gar Fac Low Low Fac Low Low Fac Upp Upp War Pro Fac Res Res Acc Com Distress Signals 41 | . 1 . 4 . . . 3 . . 2 . . . 1 . . . . . 2 . . . 4 1 23 Communications Jammed 6 | . . . . . . . . . . . . . . 6 . . . . . . . . . . . . Distress Signals 6 | . . . . . . . . . . . . . . 6 . . . . . . . . . . . . Times Spotted 367 | . 24 2 36 9 . . 38 30 13 39 23 1 14 13 . . 7 3 2 24 16 4 4 22 12 31 Peak Tracking Total 18 | . 3 1 8 4 . . 7 7 5 5 5 1 3 7 . . 5 3 2 18 13 1 3 5 6 5 Tactical Retreats 31 | . 2 . 1 . . . 2 4 . 8 3 . 1 2 . . . . . 1 1 1 1 1 1 2 ECM-based Alert Blocks 6 | . . . . . . . . . . . . . . . . . . . . . . 1 3 . . 2 Traps | -11 -10 -10 -9 -9 -9 -8 -8 -8 -7 -7 -7 -7 -7 -6 -6 -6 -5 -5 -5 -5 -4 -4 -3 -2 -1 -1 ------- Run | Yrd Mat Min Mat Min Exi Min Mat Gar Fac Gar Fac Low Low Fac Low Low Fac Upp Upp War Pro Fac Res Res Acc Com Traps Triggered 10 | . . . . . . . . 3 . . 2 . . 1 . . . . . . . . . . . 4 Indirectly . | . . . . . . . . . . . . . . . . . . . . . . . . . . . Trap Hack Attempts . | . . . . . . . . . . . . . . . . . . . . . . . . . . . Triggered . | . . . . . . . . . . . . . . . . . . . . . . . . . . . Disarmed . | . . . . . . . . . . . . . . . . . . . . . . . . . . . Reprogrammed . | . . . . . . . . . . . . . . . . . . . . . . . . . . . Reused . | . . . . . . . . . . . . . . . . . . . . . . . . . . . Traps Extracted . | . . . . . . . . . . . . . . . . . . . . . . . . . . . Installed . | . . . . . . . . . . . . . . . . . . . . . . . . . . . Triggered . | . . . . . . . . . . . . . . . . . . . . . . . . . . . Machines | -11 -10 -10 -9 -9 -9 -8 -8 -8 -7 -7 -7 -7 -7 -6 -6 -6 -5 -5 -5 -5 -4 -4 -3 -2 -1 -1 ---------- Run | Yrd Mat Min Mat Min Exi Min Mat Gar Fac Gar Fac Low Low Fac Low Low Fac Upp Upp War Pro Fac Res Res Acc Com Machines Disabled 35 | . 3 . 7 1 . . 1 5 . 5 3 . . . . . 1 . . 1 . 2 . 1 . 5 Max in Single Turn 2 | . 1 . 2 1 . . 1 1 . 1 1 . . . . . 1 . . 1 . 1 . 1 . 2 Garrison Access 4 | . . . . . . . . . . . . . . . . . . . . . . 1 . 3 . . Garrison Relay 8 | . . . . . . . . 4 . 4 . . . . . . . . . . . . . . . . Phase Generator 1 | . . . . . . . . . . . . . . . . . . . . . . . . . . 1 Machines Repaired . | . . . . . . . . . . . . . . . . . . . . . . . . . . . Machines Dismantled . | . . . . . . . . . . . . . . . . . . . . . . . . . . . Machines Sabotaged . | . . . . . . . . . . . . . . . . . . . . . . . . . . . Overloaded Fab Kills . | . . . . . . . . . . . . . . . . . . . . . . . . . . . Hacking | -11 -10 -10 -9 -9 -9 -8 -8 -8 -7 -7 -7 -7 -7 -6 -6 -6 -5 -5 -5 -5 -4 -4 -3 -2 -1 -1 --------- Run | Yrd Mat Min Mat Min Exi Min Mat Gar Fac Gar Fac Low Low Fac Low Low Fac Upp Upp War Pro Fac Res Res Acc Com Machines Accessed 89 | . 7 . 15 . 2 2 5 3 5 1 9 1 . 4 1 . 6 . . 1 . 7 3 6 7 4 Terminals 63 | . 6 . 12 . . 2 2 3 3 1 7 . . 4 . . 4 . . . . 4 3 1 7 4 Fabricators 6 | . . . . . . . . . 1 . 1 . . . . . 2 . . . . 1 . 1 . . Repair Stations 5 | . 1 . 2 . . . 1 . . . 1 . . . . . . . . . . . . . . . Recycling Units . | . . . . . . . . . . . . . . . . . . . . . . . . . . . Scanalyzers 4 | . . . 1 . . . 1 . . . . . . . . . . . . . . 1 . 1 . . Garrison Access 6 | . . . . . . . 1 . 1 . . . . . . . . . . . . 1 . 3 . . Total Hacks 254 | . 32 . 44 . 2 7 17 5 14 2 22 1 . 9 1 . 15 . . 1 . 19 7 19 20 17 Successful 127 | . 22 . 28 . 2 2 13 2 3 1 6 1 . 4 1 . 7 . . 1 . 7 2 5 11 9 Failed 126 | . 10 . 15 . . 5 4 3 11 1 16 . . 5 . . 8 . . . . 12 5 14 9 8 Catastrophic 21 | . 2 . 2 . . 2 . . 1 . 5 . . . . . 1 . . . . 2 2 2 . 2 Database Lockouts 1 | . . . 1 . . . . . . . . . . . . . . . . . . . . . . . Manual 123 | . 18 . 24 . 1 7 5 . 7 . 12 . . 5 . . 11 . . 1 . 5 5 3 8 11 Terminals 179 | . 22 . 32 . . 7 7 5 8 2 18 . . 9 . . 9 . . . . 14 7 2 20 17 Fabricators 14 | . . . . . . . . . 3 . 1 . . . . . 6 . . . . 1 . 3 . . Repair Stations 21 | . 10 . 6 . . . 2 . . . 3 . . . . . . . . . . . . . . . Recycling Units . | . . . . . . . . . . . . . . . . . . . . . . . . . . . Scanalyzers 23 | . . . 6 . . . 7 . . . . . . . . . . . . . . 3 . 7 . . Garrison Access 12 | . . . . . . . 1 . 3 . . . . . . . . . . . . 1 . 7 . . Terminal Hacks 43 | . 4 . 6 . 2 2 . 2 . 1 2 1 . 2 1 . . . . 1 . 3 1 1 8 6 Record 1 | . . . . . 1 . . . . . . . . . . . . . . . . . . . . . Part Schematic 1 | . 1 . . . . . . . . . . . . . . . . . . . . . . . . . Prototype ID Bank 7 | . 1 . 2 . . 2 . . . . . . . 1 . . . . . . . . . . . 1 Open Door 8 | . . . . . . . . 1 . . . 1 . . 1 . . . . 1 . . . . 3 1 Level Access Points 2 | . . . . . . . . . . . 1 . . . . . . . . . . 1 . . . . Branch Access Points 5 | . . . . . . . . . . . 1 . . 1 . . . . . . . 1 1 . 1 . Emergency Access Points 2 | . . . 2 . . . . . . . . . . . . . . . . . . . . . . . Machine Index 1 | . . . . . . . . . . . . . . . . . . . . . . . . . 1 . Terminal Index 3 | . 1 . . . . . . . . . . . . . . . . . . . . 1 . 1 . . Garrison Index 1 | . . . . . . . . . . . . . . . . . . . . . . . . . . 1 Alert Level 1 | . . . . . . . . . . . . . . . . . . . . . . . . . 1 . Locate Traps 2 | . . . . . . . . . . . . . . . . . . . . . . . . . 1 1 Patrol Status 1 | . . . . . . . . . . . . . . . . . . . . . . . . . . 1 Hauler Manifests 1 | . . . 1 . . . . . . . . . . . . . . . . . . . . . . . Registered Components 2 | . 1 . 1 . . . . . . . . . . . . . . . . . . . . . . . Registered Prototypes 2 | . . . . . . . . . . . . . . . . . . . . . . . . . 1 1 Security Stations 2 | . . . . . . . . 1 . 1 . . . . . . . . . . . . . . . . Proto ID Catalog 1 | . . . . . 1 . . . . . . . . . . . . . . . . . . . . . Fabricator Hacks 4 | . . . . . . . . . 1 . . . . . . . 2 . . . . . . 1 . . Network Status 3 | . . . . . . . . . 1 . . . . . . . 1 . . . . . . 1 . . Build 1 | . . . . . . . . . . . . . . . . . 1 . . . . . . . . . Repair Station Hacks 18 | . 10 . 6 . . . 1 . . . 1 . . . . . . . . . . . . . . . Scan Component 10 | . 5 . 3 . . . 1 . . . 1 . . . . . . . . . . . . . . . Repair 8 | . 5 . 3 . . . . . . . . . . . . . . . . . . . . . . . Recycling Unit Hacks . | . . . . . . . . . . . . . . . . . . . . . . . . . . . Scanalyzer 14 | . . . 6 . . . 6 . . . . . . . . . . . . . . 1 . 1 . . Insert Component 3 | . . . 3 . . . . . . . . . . . . . . . . . . . . . . . Analyze 3 | . . . 3 . . . . . . . . . . . . . . . . . . . . . . . Retrieve Study 8 | . . . . . . . 6 . . . . . . . . . . . . . . 1 . 1 . . Garrison Access Hacks 4 | . . . . . . . 1 . 1 . . . . . . . . . . . . 1 . 1 . . Unlock Access 2 | . . . . . . . 1 . 1 . . . . . . . . . . . . . . . . . Seal Access 2 | . . . . . . . . . . . . . . . . . . . . . . 1 . 1 . . Unauthorized Hacks 44 | . 8 . 10 . . . 5 . 1 . 3 . . 2 . . 5 . . . . 2 1 1 3 3 Terminals 38 | . 8 . 10 . . . 5 . 1 . 2 . . 2 . . 2 . . . . 1 1 . 3 3 Assimilate 1 | . . . 1 . . . . . . . . . . . . . . . . . . . . . . . Botnet 20 | . 2 . 2 . . . 2 . 1 . 2 . . 2 . . 2 . . . . 1 1 . 2 3 Operators 4 | . 1 . 1 . . . 1 . . . . . . . . . . . . . . . . . 1 . Skim 13 | . 5 . 6 . . . 2 . . . . . . . . . . . . . . . . . . . Fabricators 6 | . . . . . . . . . . . 1 . . . . . 3 . . . . 1 . 1 . . Liberate 4 | . . . . . . . . . . . 1 . . . . . 2 . . . . . . 1 . . Haulers 1 | . . . . . . . . . . . . . . . . . 1 . . . . . . . . . Download 1 | . . . . . . . . . . . . . . . . . . . . . . 1 . . . . Repair Stations . | . . . . . . . . . . . . . . . . . . . . . . . . . . . Recycling Units . | . . . . . . . . . . . . . . . . . . . . . . . . . . . Scanalyzers . | . . . . . . . . . . . . . . . . . . . . . . . . . . . Garrison Access . | . . . . . . . . . . . . . . . . . . . . . . . . . . . Data Cores Recovered 2 | . . . . . . . . . . . . . . . . . . . . . . 1 . . 1 . Used . | . . . . . . . . . . . . . . . . . . . . . . . . . . . Hacking Detections 69 | . 7 . 13 . . 2 3 2 5 1 8 . . 4 . . 5 . . . . 5 3 5 3 3 Full Trace Events 9 | . . . 1 . . 1 . . 1 . 4 . . . . . . . . . . 1 . 1 . . Feedback Events . | . . . . . . . . . . . . . . . . . . . . . . . . . . . Feedback Blocked . | . . . . . . . . . . . . . . . . . . . . . . . . . . . Robot Schematics Acquired 1 | . . . . . . . . . . . . . . . . . . . . . . 1 . . . . Robots Built 4 | . . . . . . . . . . . . . . . . . 4 . . . . . . . . . Authchips . | . . . . . . . . . . . . . . . . . . . . . . . . . . . Time 67 | . . . . . . . . . . . . . . . . . 67 . . . . . . . . . Total Robot Build Rating 16 | . . . . . . . . . . . . . . . . . 16 . . . . . . . . . Part Schematics Acquired 4 | . 1 . 3 . . . . . . . . . . . . . . . . . . . . . . . Parts Built . | . . . . . . . . . . . . . . . . . . . . . . . . . . . Authchips . | . . . . . . . . . . . . . . . . . . . . . . . . . . . Time . | . . . . . . . . . . . . . . . . . . . . . . . . . . . Total Part Build Rating . | . . . . . . . . . . . . . . . . . . . . . . . . . . . Part Studies Acquired 8 | . . . . . . . 6 . . . . . . . . . . . . . . 1 . 1 . . Parts Repaired 8 | . 5 . 3 . . . . . . . . . . . . . . . . . . . . . . . Time 214 | . 130 . 84 . . . . . . . . . . . . . . . . . . . . . . . Parts Recycled . | . . . . . . . . . . . . . . . . . . . . . . . . . . . Recycled Matter . | . . . . . . . . . . . . . . . . . . . . . . . . . . . Retrieved Matter . | . . . . . . . . . . . . . . . . . . . . . . . . . . . Retrieved Components . | . . . . . . . . . . . . . . . . . . . . . . . . . . . Parts Scanalyzed 3 | . . . 3 . . . . . . . . . . . . . . . . . . . . . . . Part Schematics Acquired 3 | . . . 3 . . . . . . . . . . . . . . . . . . . . . . . Parts Damaged . | . . . . . . . . . . . . . . . . . . . . . . . . . . . Bothacking | -11 -10 -10 -9 -9 -9 -8 -8 -8 -7 -7 -7 -7 -7 -6 -6 -6 -5 -5 -5 -5 -4 -4 -3 -2 -1 -1 ------------ Run | Yrd Mat Min Mat Min Exi Min Mat Gar Fac Gar Fac Low Low Fac Low Low Fac Upp Upp War Pro Fac Res Res Acc Com Used RIF Installer . | . . . . . . . . . . . . . . . . . . . . . . . . . . . Robots Hacked . | . . . . . . . . . . . . . . . . . . . . . . . . . . . Non-combat . | . . . . . . . . . . . . . . . . . . . . . . . . . . . Combat . | . . . . . . . . . . . . . . . . . . . . . . . . . . . Robot Hacks Applied . | . . . . . . . . . . . . . . . . . . . . . . . . . . . Relay Couplers Released 33 | . . . . . . . . 17 . 14 . . . . . . . . . . . . . 2 . . Machine Destruction 33 | . . . . . . . . 17 . 14 . . . . . . . . . . . . . 2 . . Fabnet Peak Effective % . | . . . . . . . . . . . . . . . . . . . . . . . . . . . Robots Rewired 11 | . . . . . . . . . . 6 . . . . . . . . . 5 . . . . . . Allies Hacked . | . . . . . . . . . . . . . . . . . . . . . . . . . . . Hacks Repelled 2 | . . . . . . . . . . . . . . . . . . . . . . . . . . 2 Allies | -11 -10 -10 -9 -9 -9 -8 -8 -8 -7 -7 -7 -7 -7 -6 -6 -6 -5 -5 -5 -5 -4 -4 -3 -2 -1 -1 -------- Run | Yrd Mat Min Mat Min Exi Min Mat Gar Fac Gar Fac Low Low Fac Low Low Fac Upp Upp War Pro Fac Res Res Acc Com Total Allies 30 | . . 4 . 2 . . . 1 . 8 . . 1 . . . 7 . . 5 . . . . . 2 Largest Group 5 | . . 4 3 2 2 . . 1 . 3 2 . 1 . . . 5 4 3 5 . . . . . 2 Highest-Rated Group 320 | . . 71 40 39 39 . . 20 . 142 142 . 165 . . . 87 48 36 284 . . . . . 320 Highest-Rated Ally 165 | . . 31 16 31 31 . . 20 . 80 80 . 165 . . . 29 12 12 68 . . . . . 160 Initial Warlord ECA Mod 15 | . . . . . . . . . 7 7 15 15 15 14 14 14 13 13 13 13 12 12 11 10 9 9 Total Orders 3 | . . . . . . . . . . 3 . . . . . . . . . . . . . . . . ROAM 2 | . . . . . . . . . . 2 . . . . . . . . . . . . . . . . FOLLOW 1 | . . . . . . . . . . 1 . . . . . . . . . . . . . . . . Ally Attacks 173 | . . . 29 . . . . 2 . 27 9 . . . . . 33 5 5 10 . . . . . 53 Total Damage 2825 | . . . 284 . . . . 76 . 609 406 . . . . . 395 65 45 576 . . . . . 369 Kills 21 | . . . 5 . . . . 1 . 4 2 . . . . . 5 . . 2 . . . . . 2 Allies Corrupted 1 | . . . . . . . . . . . 1 . . . . . . . . . . . . . . . Allies Melted 7 | . . . . . . . . . . 1 . . 1 . . . . . . 2 . . . 3 . . Field Lobotomies 2 | . . . . . . . . . . . . . . . . . . . . . . . . . . 2 Intel | -11 -10 -10 -9 -9 -9 -8 -8 -8 -7 -7 -7 -7 -7 -6 -6 -6 -5 -5 -5 -5 -4 -4 -3 -2 -1 -1 ------- Run | Yrd Mat Min Mat Min Exi Min Mat Gar Fac Gar Fac Low Low Fac Low Low Fac Upp Upp War Pro Fac Res Res Acc Com Active Infowar (turns) 18825 | 28 1570 1153 447 1744 746 1 . . 667 1739 1851 936 1260 658 228 37 313 180 75 1129 166 280 276 1084 506 1751 Optics 10754 | . . . . . . . . . 667 1739 1851 936 1260 658 228 37 260 . . . . . . 861 506 1751 Seismic 7835 | 28 1570 1153 447 1744 746 1 . . . . . 908 1236 2 . . . . . . . . . . . . T.N.C. 834 | . . . . . . . . . . . . . . . . . . . . . . . . 834 . . Machine Analysis 5500 | . . . . . . . . . . . . . . . . . 53 180 75 1129 166 280 276 1084 506 1751 Cloaking 3242 | . . . . . . . . . . . . . . . . . . . . . . . . 1075 506 1661 Jamming 509 | . . . . . . . . . . . . . . 509 . . . . . . . . . . . . ECM 1654 | . . . . . . . . . . . . . . . . . . . . . . 81 276 10 . 1287 Robot Analysis Total . | . . . . . . . . . . . . . . . . . . . . . . . . . . . Derelict Logs Recovered 7 | . . 2 . 1 . . . . . . . . 1 . 1 . . 1 . . 1 . . . . . Drone Launches . | . . . . . . . . . . . . . . . . . . . . . . . . . . . Drone Recoveries . | . . . . . . . . . . . . . . . . . . . . . . . . . . . Exploration | -11 -10 -10 -9 -9 -9 -8 -8 -8 -7 -7 -7 -7 -7 -6 -6 -6 -5 -5 -5 -5 -4 -4 -3 -2 -1 -1 ------------- Run | Yrd Mat Min Mat Min Exi Min Mat Gar Fac Gar Fac Low Low Fac Low Low Fac Upp Upp War Pro Fac Res Res Acc Com Turns Passed 25122 | 157 1709 1153 2839 1983 746 1068 845 1403 671 1739 1851 936 1260 658 228 37 392 180 75 1129 166 280 276 1084 506 1751 Spaces Moved 17670 | 64 556 451 956 710 311 442 340 617 309 803 873 495 542 432 401 58 545 380 225 837 281 487 424 2544 954 2633 Core 896 | 4 . . . . . . . . . . . . . 225 401 58 202 . . 6 . . . . . . Treads 7672 | 60 556 451 956 710 311 442 340 617 309 803 873 495 542 207 . . . . . . . . . . . . Legs . | . . . . . . . . . . . . . . . . . . . . . . . . . . . Wheels . | . . . . . . . . . . . . . . . . . . . . . . . . . . . Hover 406 | . . . . . . . . . . . . . . . . . . . . 83 281 42 . . . . Flight 8696 | . . . . . . . . . . . . . . . . . 343 380 225 748 . 445 424 2544 954 2633 Fastest Speed 25 | 50 160 240 240 240 240 240 160 160 160 160 160 160 200 50 50 50 26 32 32 32 45 30 29 25 34 32 Average Speed 106 | 153 214 240 240 240 240 240 160 160 160 161 182 177 200 122 50 50 38 32 32 34 48 37 29 26 34 32 Slowest Speed 320 | 160 320 240 240 240 240 240 160 160 240 213 200 200 200 320 50 50 275 32 32 200 126 125 30 109 34 105 Overloaded Moves 23 | . . . . . . . . . . . . . . . . . . . . 23 . . . . . . Propulsion Burnouts . | . . . . . . . . . . . . . . . . . . . . . . . . . . . Robots Hopped 26 | . . . . . . . . . . . . . . . . . . . . . . 2 2 20 . 2 Potential Cave-ins 4 | . . . . . . . . . . . . . . . . . . . . 4 . . . . . . Cave-ins Triggered 1 | . 1 . . . . . . . . . . . . . . . . . . . . . . . . . Exploration Rate (%) 52 | 4 86 96 89 99 69 99 36 78 11 60 30 56 67 15 72 16 13 56 43 89 47 17 13 60 21 66 Regions Visited 26 Branch Regions 13 Pre-discovered Areas 6 | . . . 2 1 1 . . . . . . 1 . . . . . 1 . . . . . . . . Known Exits Taken 18 | . 1 1 1 . . 1 1 . 1 . 1 . 1 1 1 1 1 1 1 1 1 1 . . 1 . Unknown Exits Taken 6 | 1 . . . 1 1 . . . . . . 1 . . . . . . . . . . 1 1 . . Scrap Searched 14 | . . 3 . 2 . 1 . . . . . . 3 . 2 . . 2 . . 1 . . . . . Spaces Dug 264 | . 26 . 1 8 . . . 5 1 34 12 4 2 2 . . 5 3 . . 1 10 6 6 64 74 Terrain Destroyed 616 | . 31 . 22 8 . . 19 5 1 52 33 4 2 5 . . 5 3 . . 74 10 6 33 64 239 Melee 101 | . 2 . 1 . . . . 5 1 7 12 4 2 2 . . 5 3 . . 1 10 6 6 27 7 Projectile 3 | . . . . . . . . . . . . . . 3 . . . . . . . . . . . . AOE 512 | . 29 . 21 8 . . 19 . . 45 21 . . . . . . . . . 73 . . 27 37 232 Terrain Rammed . | . . . . . . . . . . . . . . . . . . . . . . . . . . . Walls Destroyed . | . . . . . . . . . . . . . . . . . . . . . . . . . . . Machines Disabled . | . . . . . . . . . . . . . . . . . . . . . . . . . . . Actions | -11 -10 -10 -9 -9 -9 -8 -8 -8 -7 -7 -7 -7 -7 -6 -6 -6 -5 -5 -5 -5 -4 -4 -3 -2 -1 -1 --------- Run | Yrd Mat Min Mat Min Exi Min Mat Gar Fac Gar Fac Low Low Fac Low Low Fac Upp Upp War Pro Fac Res Res Acc Com Total 22376 | 91 894 494 1321 951 312 448 532 833 421 1071 1033 535 666 530 416 60 700 425 227 1677 298 558 550 2917 1075 3341 Wait 3042 | 2 202 15 190 215 . 1 87 61 44 81 59 26 90 50 1 . 118 35 3 782 5 24 98 291 80 482 Move 17602 | 63 555 450 955 709 310 441 340 616 308 802 872 494 541 431 400 57 544 379 224 836 280 482 419 2513 953 2628 Hop 16 | . . . . . . . . . . . . . . . . . . . . . . 2 2 10 . 2 Pick Up 157 | 3 18 5 24 . 1 . 11 7 11 25 12 1 2 6 2 . 2 . . 2 . 7 5 10 . 3 Fast Attach 142 | 7 5 . 2 2 . 2 3 1 1 6 10 2 1 5 2 . 13 2 . 13 6 10 4 24 3 18 Attach 74 | . 3 2 3 . . . 2 2 8 11 7 . 2 8 . . 2 . . 4 . 3 2 6 . 9 Detach 34 | . . 1 . . . . 1 . . . . . . 2 1 . 1 . . 5 . 3 1 4 . 15 Swap 138 | . 17 1 26 3 . 1 19 13 7 16 5 3 5 5 . . . . . 4 . 1 1 6 1 4 Drop 214 | . 3 3 32 2 1 2 19 13 9 17 12 . 2 8 2 . 6 2 . 17 . 7 6 34 1 16 Fire 569 | 16 86 12 87 10 . . 49 99 24 63 36 3 21 11 . . . . . 1 3 . . 4 2 42 Melee 310 | . 4 . 1 . . . . 21 4 50 20 6 2 4 8 3 14 7 . . 3 18 12 15 35 83 Ram 1 | . . . . . . . . . . . . . . . . . . . . . 1 . . . . . Kick . | . . . . . . . . . . . . . . . . . . . . . . . . . . . Crush 24 | . 1 5 1 10 . 1 1 . 5 . . . . . . . . . . . . . . . . . Escape Stasis 38 | . . . . . . . . . . . . . . . . . . . . . . . . . . 38 Rewire 15 | . . . . . . . . . . . . . . . . . . . . 13 . 1 . . . 1 Trap . | . . . . . . . . . . . . . . . . . . . . . . . . . . . Miscellaneous . | . . . . . . . . . . . . . . . . . . . . . . . . . . . Route ------- -11/Scrapyard -10/Materials (discovered 5 exits: *Mat x3 / *Min / *Sub) -10/Mines (discovered 3 exits: *Mat x2 / *Sub) -9/Materials (discovered 5 exits: *Mat x3 / *Min x2) -9/Mines (discovered 3 exits: *Mat x2 / *Exi) -9/Exiles -8/Mines (discovered 2 exits: *Mat x2) -8/Materials (discovered 2 exits: *Fac / Gar) -8/Garrison (discovered 3 exits: *Fac x3) -7/Factory (discovered 2 exits: *Sto / Gar) -7/Garrison (discovered 2 exits: *Fac x2) -7/Factory (discovered 8 exits: *Fac x4 / Sto x2 / *Low x2) -7/Lower Caves -7/Lower Caves -6/Factory (discovered 2 exits: *Low x2) -6/Lower Caves -6/Lower Caves -5/Factory -5/Upper Caves -5/Upper Caves (discovered 2 exits: *Fac / *War) -5/Warlord -4/Proximity Caves -4/Factory (discovered 7 exits: *Res x4 / *Upp x2 / Arm) -3/Research (discovered 3 exits: *Res / Qua x2) -2/Research (discovered 4 exits: *Acc x2 / *Tes x2) -1/Access -1/Command (discovered 2 exits: [*Sur x2]) 0b11 Command History --------- Turn | Location | Event 13 | -11/Scrapyard | Discovered new exit (range 14) 158 | -11/Scrapyard | Entered Materials 311 | -10/Materials | Build established: Mutant 552 | -10/Materials | Discovered new exit (range 7) 1090 | -10/Materials | Crushed by falling debris 1286 | -10/Materials | Learned Storage security intel 1310 | -10/Materials | Repaired Lgt. Treads 1327 | -10/Materials | Learned Storage security intel 1338 | -10/Materials | Repaired Lgt. Treads 1357 | -10/Materials | Loaded intel: 10 trap records 1365 | -10/Materials | Repaired Lgt. Assault Rifle 1379 | -10/Materials | Identified exit to Materials 1391 | -10/Materials | Repaired Seismic Detector 1392 | -10/Materials | Identified exit to Mines 1395 | -10/Materials | Loaded intel: 11 interactive machine locations 1396 | -10/Materials | Learned Storage trap positions 1399 | -10/Materials | Learned Storage garrison access intel 1413 | -10/Materials | Learned 4 Recycling zone layouts 1419 | -10/Materials | Repaired Sml. Laser 1438 | -10/Materials | Learned location of 2 exits from Mines 1475 | -10/Materials | Identified exit to Subcaves 1805 | -10/Materials | Core integrity fell below 50% 1867 | -10/Materials | Entered Mines 2329 | -10/Mines | A weapon hastily lodged in a ceiling crevice suddenly fell to the ground 2331 | -10/Mines | Build established: Scavenger-Mutant 2487 | -10/Mines | Learned 8 Materials zone layouts 2637 | -10/Mines | Received a Mining Laser from a helpful Derelict 2785 | -10/Mines | Assisted by bots powering up and referring to "LRC-V3" 3008 | -10/Mines | Discovered exit to Subcaves (range 13) 3020 | -10/Mines | Entered Materials 3020 | -9/Materials | Accompanied by 3 allies 3020 | -9/Materials | Evolved 2 slots: Weapon x2 3021 | -9/Materials | Identified exit to Materials 3021 | -9/Materials | Identified exit to Mines 3068 | -9/Materials | Repaired Lgt. Treads 3095 | -9/Materials | Repaired Lgt. Treads 3592 | -9/Materials | Build established: Gunner 3633 | -9/Materials | Destroyed 8 combat bots 4230 | -9/Materials | Build established: Scavenger-Gunner 4416 | -9/Materials | Central database locked down 4636 | -9/Materials | Learned Storage emergency access door positions 4690 | -9/Materials | Loaded intel: 5 trap records 4764 | -9/Materials | Learned 4 Recycling zone layouts 4804 | -9/Materials | Learned Storage emergency access door positions 4948 | -9/Materials | Build established: Gunner 5138 | -9/Materials | Repaired Rocket Launcher 5253 | -9/Materials | Build established: Scavenger-Gunner 5820 | -9/Materials | First assault squad dispatched 5859 | -9/Materials | Entered Mines 5866 | -9/Mines | Met a Derelict bent on vengeance 6192 | -9/Mines | Assembled infested the area 6964 | -9/Mines | Discovered new exit (range 5) 7842 | -9/Mines | Entered Exiles 7842 | -9/Exiles | Accompanied by 2 allies 7872 | -9/Exiles | Led the pair of lost Derelicts to a safe place 7907 | -9/Exiles | Met 8R-AWN 7941 | -9/Exiles | Met EX-HEX 8054 | -9/Exiles | Met EX-DEC 8094 | -9/Exiles | Learned location of Zion (-7) 8258 | -9/Exiles | Met EX-BIN 8294 | -9/Exiles | Aligned with FarCom system 8296 | -9/Exiles | Given EX-Vault access code 8351 | -9/Exiles | Opened EX-Vault 8371 | -9/Exiles | Found Field Lobotomy Kit 8418 | -9/Exiles | Warned to stay clear of 0b10 Research branches 8569 | -9/Exiles | Discovered new exit (range 10) 8588 | -9/Exiles | Left Exiles lab with Field Lobotomy Kit 8588 | -9/Exiles | Entered Mines 8651 | -8/Mines | Discovered exit to Materials (range 5) 8876 | -8/Mines | Build established: Scavenger-Skirmisher 9076 | -8/Mines | Discovered exit to Materials (range 14) 9573 | -8/Mines | Found DCF Scrap (14 items) 9656 | -8/Mines | Entered Materials 9656 | -8/Materials | Evolved 2 slots: Propulsion x2 10488 | -8/Materials | Discovered new exit (range 13) 10501 | -8/Materials | Identified exit to Garrison 10501 | -8/Materials | Entered Garrison 10625 | -8/Garrison | Triggered checkpoint 10722 | -8/Garrison | Garrison Relay disabled 10886 | -8/Garrison | Destroyed 7 combat bots 10925 | -8/Garrison | Triggered checkpoint 11003 | -8/Garrison | Triggered checkpoint 11073 | -8/Garrison | Garrison Relay disabled 11187 | -8/Garrison | Rescued a captive Derelict 11238 | -8/Garrison | Discovered new exit (range 12) 11369 | -8/Garrison | Triggered checkpoint 11477 | -8/Garrison | Triggered checkpoint 11505 | -8/Garrison | Garrison Relay disabled 11580 | -8/Garrison | Discovered new exit (range 9) 11785 | -8/Garrison | Triggered checkpoint 11820 | -8/Garrison | Garrison Relay disabled 11832 | -8/Garrison | Learned Factory security intel 11874 | -8/Garrison | Discovered new exit (range 10) 11904 | -8/Garrison | Entered Factory 11904 | -7/Factory | Evolved 2 slots: Utility x2 11905 | -7/Factory | Identified exit to Storage 12304 | -7/Factory | First assault squad dispatched 12473 | -7/Factory | Lost 5 parts (2n3w) 12564 | -7/Factory | Identified exit to Garrison 12575 | -7/Factory | Entered Garrison 12651 | -7/Garrison | Lost 8 parts (1p4n3w) 12754 | -7/Garrison | Learned Factory security intel 12769 | -7/Garrison | Garrison Relay disabled 12771 | -7/Garrison | Triggered checkpoint 12873 | -7/Garrison | Lost 3 parts (1n2w) 13017 | -7/Garrison | Triggered checkpoint 13349 | -7/Garrison | Triggered checkpoint 13493 | -7/Garrison | Discovered new exit (range 6) 13521 | -7/Garrison | Triggered checkpoint 13581 | -7/Garrison | Garrison Relay disabled 13836 | -7/Garrison | Core integrity fell below 50% 13939 | -7/Garrison | Discovered new exit (range 19) 13991 | -7/Garrison | Found embedded Infiltrators 14015 | -7/Garrison | Triggered checkpoint 14057 | -7/Garrison | Garrison Relay disabled 14253 | -7/Garrison | Garrison Relay disabled 14267 | -7/Garrison | Triggered checkpoint 14314 | -7/Garrison | Entered Factory 14314 | -7/Factory | Accompanied by 2 allies 14818 | -7/Factory | Discovered new exit (range 4) 14825 | -7/Factory | Identified exit to Factory 15114 | -7/Factory | First assault squad dispatched 15723 | -7/Factory | Lost 3 parts (1n2w) 15953 | -7/Factory | Identified exit to Lower Caves 16165 | -7/Factory | Entered Lower Caves 16183 | -7/Lower Caves | Met a Warlord Commander 16184 | -7/Lower Caves | Learned location of Warlord (-5) 16185 | -7/Lower Caves | Warlord Commander delivered Encrypted Comm Array 16189 | -7/Lower Caves | Found Encrypted Comm Array 16719 | -7/Lower Caves | Discovered new exit (range 10) 17101 | -7/Lower Caves | Entered another Lower Caves area 17232 | -7/Lower Caves | Encountered a Warlord checkpoint 17363 | -7/Lower Caves | Spotted B-75 Beast 17795 | -7/Lower Caves | Attracted the attention of an 0b10 checkpoint 17874 | -7/Lower Caves | Learned 4 Factory zone layouts 18288 | -7/Lower Caves | Core integrity fell below 20% 18314 | -7/Lower Caves | ME-RLN showed up to help 18316 | -7/Lower Caves | ME-RLN revealed a hidden path 18361 | -7/Lower Caves | Entered Factory 18361 | -6/Factory | Evolved 2 slots: Utility x2 18789 | -6/Factory | Identified exit to Lower Caves 18902 | -6/Factory | Core integrity fell below 50% 18921 | -6/Factory | Lost 13 parts (2p4n3u4w) 19019 | -6/Factory | Entered Lower Caves 19033 | -6/Lower Caves | Encountered a Warlord checkpoint 19142 | -6/Lower Caves | Build established: Hacker-Mutant 19188 | -6/Lower Caves | Learned Factory stockpile data 19232 | -6/Lower Caves | Discovered new exit (range 7) 19247 | -6/Lower Caves | Identified exit to Lower Caves 19247 | -6/Lower Caves | Entered another Lower Caves area 19281 | -6/Lower Caves | Discovered new exit (range 4) 19283 | -6/Lower Caves | Identified exit to Factory 19284 | -6/Lower Caves | Entered Factory 19284 | -5/Factory | Evolved 2 slots: Power x1, Utility x1 19575 | -5/Factory | Lost 4 parts (3n1u) 19602 | -5/Factory | Discovered new exit (range 15) 19610 | -5/Factory | Identified exit to Upper Caves 19672 | -5/Factory | Fabricated S-27 Virus (x4) 19676 | -5/Factory | Entered Upper Caves 19676 | -5/Upper Caves | Accompanied by 4 allies 19734 | -5/Upper Caves | Learned location of Armory (-4) 19770 | -5/Upper Caves | Build established: Hacker-Sprinter 19854 | -5/Upper Caves | Discovered new exit (range 9) 19856 | -5/Upper Caves | Identified exit to Upper Caves 19856 | -5/Upper Caves | Entered another Upper Caves area 19856 | -5/Upper Caves | Accompanied by 3 allies 19862 | -5/Upper Caves | Discovered new exit (range 13) 19866 | -5/Upper Caves | Identified exit to Factory 19930 | -5/Upper Caves | Discovered new exit (range 5) 19931 | -5/Upper Caves | Identified exit to Warlord 19931 | -5/Upper Caves | Entered Warlord 19932 | -5/Warlord | Lost 3 allies 19941 | -5/Warlord | Discovered new exit (range 8) 19943 | -5/Warlord | Identified exit to Proximity Caves 20163 | -5/Warlord | Visited the Vortex Lab 20164 | -5/Warlord | Found Prototype Energy Cannon 20164 | -5/Warlord | Identified Vortex Cannon 20167 | -5/Warlord | Warlord's base attacked by MAIN.C 20168 | -5/Warlord | Found Prototype Energy Gun 20168 | -5/Warlord | Identified Vortex Rail 20171 | -5/Warlord | Found Vortex Cannon 20210 | -5/Warlord | Found Prototype Processor 20210 | -5/Warlord | Identified Exp. Core Analyzer 20215 | -5/Warlord | Found Prototype Device 20215 | -5/Warlord | Identified Exp. Phase Shifter 20221 | -5/Warlord | Found Prototype Reactor 20221 | -5/Warlord | Identified Vortex Chain Reactor 20236 | -5/Warlord | Met Warlord 20515 | -5/Warlord | Build established: Commander-Mutant 20517 | -5/Warlord | Warlord forces counterattacked 20842 | -5/Warlord | Warlord base infiltrated, sounded retreat 20843 | -5/Warlord | Enhanced Grunt warped into view 20843 | -5/Warlord | Enhanced Grunt warped into view 20843 | -5/Warlord | Enhanced Grunt warped into view 20843 | -5/Warlord | Enhanced Demolisher warped into view 20843 | -5/Warlord | Enhanced Demolisher warped into view 20843 | -5/Warlord | Enhanced Demolisher warped into view 20959 | -5/Warlord | Found Prototype Launcher 20959 | -5/Warlord | Identified Chain Missile Launcher 20985 | -5/Warlord | Spotted Striker 20987 | -5/Warlord | Allies destroyed Striker 20992 | -5/Warlord | Spotted Striker 20993 | -5/Warlord | Allies destroyed Striker 21024 | -5/Warlord | Lost 4 allies 21046 | -5/Warlord | Spotted Striker 21047 | -5/Warlord | Spotted Striker 21060 | -5/Warlord | Entered Proximity Caves 21133 | -4/Proximity Caves | Spotter reported a threat 21138 | -4/Proximity Caves | Attracted the attention of an 0b10 checkpoint 21195 | -4/Proximity Caves | Attracted the attention of an 0b10 outpost 21211 | -4/Proximity Caves | Learned Research trap positions 21217 | -4/Proximity Caves | Discovered exit to Factory (range 12) 21225 | -4/Proximity Caves | Lost 4 parts (1p2n1w) 21226 | -4/Proximity Caves | Entered Factory 21226 | -4/Factory | Evolved 2 slots: Propulsion x2 21333 | -4/Factory | Watched by a mysterious "MATRIX" hacker. 21349 | -4/Factory | Identified exit to Research 21411 | -4/Factory | Identified exit to Upper Caves 21411 | -4/Factory | Identified exit to Armory 21506 | -4/Factory | Entered Research 21506 | -3/Research | Evolved 2 slots: Utility x2 21507 | -3/Research | Loaded intel: 87 trap records 21545 | -3/Research | Found Prototype Device 21545 | -3/Research | Identified Exp. Thermal Shield 21709 | -3/Research | Found Fusion Bomb Launcher 21723 | -3/Research | Discovered new exit (range 15) 21729 | -3/Research | Build established: Hacker-Sprinter 21742 | -3/Research | Identified exit to Quarantine 21782 | -3/Research | Entered another Research area 21782 | -2/Research | Warlord forces began assault on 0b10 21782 | -2/Research | Evolved 2 slots: Propulsion x1, Utility x1 21807 | -2/Research | Distinguished unit "Lobotomizers" dispatched to help 21807 | -2/Research | Distinguished unit "Grunt Murderers" dispatched to help 21892 | -2/Research | Research machine network offline 21958 | -2/Research | Discovered new exit (range 12) 21961 | -2/Research | Discovered new exit (range 8) 21962 | -2/Research | Identified exit to Testing 21965 | -2/Research | Found Prototype Launcher 21965 | -2/Research | Identified Gui. Micro-nuke Launcher 21968 | -2/Research | Found Gui. Micro-nuke Launcher 21970 | -2/Research | Lost 3 allies 22020 | -2/Research | Met up with Warlord 22020 | -2/Research | Discovered exit to Testing (range 21) 22203 | -2/Research | Spotted Striker 22251 | -2/Research | Spotted B-90 Cyclops 22269 | -2/Research | Discovered new exit (range 21) 22290 | -2/Research | Build established: Hacker-Ninja 22331 | -2/Research | Met DD-05H 22365 | -2/Research | Spotted Executioner 22525 | -2/Research | Spotted Striker 22565 | -2/Research | Borebot progress halted 22664 | -2/Research | Borebot progress halted 22757 | -2/Research | Borebot progress halted 22785 | -2/Research | Warlord invited to help at Command 22785 | -2/Research | Given Cave Seal Controls access code 22866 | -2/Research | Entered Access 22866 | -1/Access | Evolved 2 slots: Utility x2 23002 | -1/Access | Identified exit to Command 23302 | -1/Access | Build established: Wizard-Ninja 23372 | -1/Access | Entered Command 23380 | -1/Command | Spotted B-99 Colossus 23582 | -1/Command | Phase Generator disabled 23638 | -1/Command | Disengaged cave seal 23638 | -1/Command | Derelicts emerged from the dark tunnel 23638 | -1/Command | Welcomed Warlord to Command 23693 | -1/Command | Lost 5 allies 23798 | -1/Command | Spotted M Guard 23798 | -1/Command | Spotted M Guard 23801 | -1/Command | Warlord commented on Warlord statues 23808 | -1/Command | Spotted Combat Programmer 23809 | -1/Command | Spotted Combat Programmer 23809 | -1/Command | Assimilated Combat Programmer with FLK Orb 23812 | -1/Command | Assimilated Combat Programmer with FLK Orb 23901 | -1/Command | Met MAIN.C 23907 | -1/Command | Warlord shut down involuntarily 23913 | -1/Command | 0b10 Conduit disabled 23959 | -1/Command | MAIN.C activated Command garrisons 23987 | -1/Command | Destroyed MAIN.C 23992 | -1/Command | Discovered new exit (range 44) 23992 | -1/Command | Discovered new exit (range 106) 23992 | -1/Command | Extracted map data and part IDs from MAIN.C's data core 24016 | -1/Command | Lost 9 allies 24019 | -1/Command | All MAIN.C guards destroyed 24167 | -1/Command | P-80 Master assimilated allied 1F-BDL(M) 24191 | -1/Command | Lost 8 allies 24736 | -1/Command | Build established: Hacker-Ninja 24781 | -1/Command | Found Multirail 24849 | -1/Command | Found Fusion Bomb Launcher 24985 | -1/Command | Found Exp. Force Field 25123 | *** | Establishing 0b11! Last Messages --------------- area. 25104_ Field strength at 94. 25104_ Field strength at 88. 25105_ Field strength at 82. 25106_ Field strength at 76. 25107_ Field strength at 70. 25108_ Field strength at 64. 25109_ Field strength at 58. 25110_ Field strength at 52. 25111_ Field strength at 46. 25112_ Field strength at 40. 25113_ Field strength at 34. 25114_ Field strength at 28. 25115_ Field strength at 22. 25116_ Field strength at 16. 25117_ Field strength at 10. 25118_ Field strength at 4. 25119_ Stasis field depleted. 25120_ The Access Shell folds into the floor. [Achievement: Commander 0b11] Map ----- +----------------------------------------------------+ | #??????# #????##### = +% = | | # #????###+###### ### #=#########%#+#### | | #????# # ! #!## # # ## | | ## # ###### # # ## + # ## | | = !![[=]#! ####### ## # # ## | | ==!=%% * #?????# ## # /% ## | | #### # ## #! [* #?????# ## #%" ## | | ### # # # ==% #?????# ## #!%% "# | | !=[%!= [!#?????#*#########%"% "" | | %* ! = [[%#######!########|=##+#"" | | ] !! =%==! [|%!! [[%=%%## ##" | | % [ !!!!#######/"######!!""#+#"" | | %[ ![=%[]] [ = " "" | | = *=*!+!+ + ] "# | | #### # ## ## #######! # ## | | ## ??# ######?????# = = # ## | | #### # # #??????????###################### | | # """ #################???????????????# | | # "T" #################???????????????# | | !% + ### % ###########??????# | | = ###### ### ###"#######??????# | | [####### ##; ^ ^^ ^ ;[#%#[# ###??????# | | =%# + ##; ^ ^ ^!^*^^^ ^ ######## | | + * # ### ^ ^ ^^%= !^^^ + | | # # ### ^ "" ^ %^^ ^^^ !^+ | | [ # ! =# ] ### ^ @" ^ %^^^^^^^^^+ | | # ####+###### ^ ^^^^^!^ ^ + | | + #??# #???## ^ =^^^^!^^!^^####+### | | ##########??# #???## ^^^^^ ^^ %!=%%#%#=;### | | #############+###### ! ;;########## | | ### % ############ """" | | * #################?????????# """" | | #################?????????# """" | | #?????????????????????????#% """" | | #?????????????????????????# | | * #?????????????????????????# | | """"T"""" #?????????????????????????# | | """"""""""" #?????????????????????????####### | | ##################???????????????????????????????? | | #????????????????????????????????????????? | | #????????????????????????????????????????? | | !== #????????????????????????????????????????? | | != #????????????????????????????????????????? | | != #????????????????????????????????????????? | | #????????????????????????????????????????? | | #########????????????????????????????????????????? | | | | | | | | | +----------------------------------------------------+ Best States ------------- Heat Dissipation 116 Energy Generation 51 Energy Capacity 325 Matter Stores 300 Matter Capacity 300 Sight Range 22 Terrain Scan Density 10 ECM Strength 1 Jamming Range 12 Cloak Strength 4 Power Amplification 30 Armor Coverage 225 Power Shielding 66 Point Defense Rating 240 Evasion (%) 65 Melee Accuracy 8 Core Analysis 8 Recoil Reduction 4 Particle Charging 20 Offensive Hacking 36 Defensive Hacking 36 Item Schematics ----------------- Hcp. Storage Unit | -10/Materials | Hacked Seismic Detector | -9/Materials | Scanalyzed Signal Interpreter | -9/Materials | Scanalyzed Ripper | -9/Materials | Scanalyzed Robot Schematics ------------------ Y-64 Sentinel | -4/Factory | Downloaded Fabricated ------------ S-27 Virus | x4 | -5/Factory | Preloaded Repaired ---------- Lgt. Treads | 5% | -10/Materials Lgt. Treads | 8% | -10/Materials Lgt. Assault Rifle | 35% | -10/Materials Seismic Detector | 30% | -10/Materials Sml. Laser | 25% | -10/Materials Lgt. Treads | 37% | -9/Materials Lgt. Treads | 62% | -9/Materials Rocket Launcher | 35% | -9/Materials Studied --------- Hvy. Assault Rifle | -8/Materials | Hacked Lgt. Assault Rifle | -8/Materials | Hacked Rocket Launcher | -8/Materials | Hacked Lgt. Treads | -8/Materials | Hacked Nuclear Core | -8/Materials | Hacked Beam Rifle | -8/Materials | Hacked Field Propulsion Drive | -4/Factory | Hacked Field Propulsion Array | -2/Research | Hacked Alien Tech Used ----------------- None Achievements -------------- Commander 0b11 Challenges ------------ None Game ------ Seed ControlPointyCloak Manual? 0 Play Time 03:04:08 Cumulative 321.4 hours Start 2026.01.25 @ 15:40:05 End 2026.01.25 @ 19:42:14 Sessions 1 Manual Loads 0 Difficulty Rogue Special Mode None Game No. 210 Rogue 210 Adventurer 0 Explorer 0 Win Type 1 Total 12 Types 8/1/1/1/0/0/0/1/0/0 Lore% 92 Gallery% 80 Achievement% 66 Wizard Run 0 Options --------- Layout 1 ASCII 0 Keyboard 0 Movement Mouse Keybinds 0 Fullscreen 2 Font 32/SmallcapsGlow Map View 50x35 Zoom Use 0% Tactical HUD 1 Map Filters NONE Filters NONE Steam 1 RUN: b506183a-2135-4463-b256-b17830500540